bitfinex/quotes_BTCUSD_20250314
["timestamp","ask_amount","ask_price","bid_price","bid_amount"]
[1741938338344,0.3,82553.0,82552.0,0.00074958]
[1741938338554,0.542268,82553.0,82552.0,0.00074958]
[1741938339158,0.04316636,82576.0,82567.0,0.242225]
[1741938339317,0.04590934,82576.0,82569.0,0.242221]
[1741938339511,0.25432,82573.0,82565.0,0.012111]
[1741938339716,0.242215,82571.0,82567.0,0.242227]
[1741938339926,0.242228,82567.0,82563.0,0.012111]
[1741938340130,0.242234,82565.0,82563.0,0.242237]
[1741938340333,0.242264,82555.0,82552.0,0.24302058]
[1741938340585,0.242254,82558.0,82552.0,0.01286258]
[1741938340811,0.3,82558.0,82556.0,0.242259]
[1741938341172,0.3,82558.0,82557.0,0.254368]
[1741938341785,0.3,82569.0,82567.0,0.242225]
[1741938341981,0.37736126,82569.0,82567.0,0.242225]
[1741938342193,0.3,82569.0,82566.0,0.254336]
[1741938342383,0.542222,82569.0,82566.0,0.254336]
[1741938342605,0.02269551,82568.0,82567.0,0.242226]
[1741938342808,0.02269551,82568.0,82567.0,0.254337]
[1741938343942,0.02269551,82568.0,82567.0,0.242226]
[1741938344901,0.02269551,82568.0,82566.0,0.242225]
[1741938345328,0.02269551,82568.0,82567.0,0.242227]
[1741938345683,0.02269551,82568.0,82567.0,0.254338]
[1741938346094,0.02269551,82568.0,82567.0,0.303438]
[1741938347733,0.02269551,82568.0,82567.0,0.385038]
[1741938348633,5.1e-07,82568.0,82567.0,0.385038]
[1741938348805,0.30126945,82600.0,82599.0,0.254239]
[1741938349020,0.30126945,82600.0,82599.0,0.2897543]
[1741938349804,0.19345107,82600.0,82599.0,0.2897543]
[1741938350184,0.19345107,82600.0,82599.0,0.29016548]
[1741938351165,0.19345107,82600.0,82599.0,0.03592648]
[1741938351425,0.19345107,82600.0,82599.0,0.00041118]
[1741938352312,0.19345107,82600.0,82599.0,0.01251718]
[1741938353540,0.19345107,82600.0,82599.0,0.01372775]
[1741938353755,0.19345107,82600.0,82599.0,0.09282773]
[1741938353964,7e-08,82600.0,82599.0,0.09282773]
[1741938354168,7e-08,82600.0,82599.0,0.14082773]
[1741938355352,7e-08,82600.0,82599.0,0.66494332]
[1741938355552,7e-08,82600.0,82599.0,0.66373277]
[1741938355875,7e-08,82600.0,82599.0,0.96373277]
[1741938356932,8e-07,82616.0,82615.0,0.25419]
[1741938357139,0.0001687,82632.0,82628.0,0.32965]
[1741938357369,0.0001687,82632.0,82628.0,0.7340646]
[1741938357992,0.012102,82630.0,82628.0,0.4799146]
[1741938358199,0.012102,82630.0,82628.0,0.4044146]
[1741938358200,0.012902,82629.0,82628.0,0.4044146]
[1741938358415,0.012102,82625.0,82618.0,0.1229]
[1741938358596,0.012102,82626.0,82619.0,0.00041118]
[1741938358793,0.0008,82629.0,82623.0,0.012103]
[1741938359034,0.0008,82629.0,82627.0,0.254152]
[1741938359255,0.242847,82629.0,82623.0,0.254164]
[1741938359423,0.242065,82623.0,82618.0,0.318276]
[1741938359642,0.242067,82622.0,82620.0,0.00766112]
[1741938360078,0.012103,82624.0,82620.0,0.24973112]
[1741938360270,0.012102,82625.0,82620.0,0.00766112]
[1741938360486,0.242067,82622.0,82620.0,0.00766112]
[1741938360699,0.012102,82627.0,82623.0,0.242062]
[1741938360907,0.0005,82631.0,82628.0,0.012102]
[1741938361113,0.012102,82630.0,82623.0,0.24206]
[1741938361290,0.012103,82624.0,82619.0,0.00041118]
[1741938361452,0.242067,82622.0,82620.0,0.05087742]
[1741938361658,0.254146,82630.0,82621.0,0.012103]
[1741938361853,0.0005,82631.0,82628.0,0.242048]
[1741938362066,0.242847,82629.0,82624.0,0.254162]
[1741938362301,0.0008,82629.0,82628.0,0.012102]
[1741938362709,0.0008,82629.0,82628.0,0.01331222]
[1741938362909,0.0008,82629.0,82628.0,0.139402]
[1741938363167,0.0008,82629.0,82628.0,0.14061198]
[1741938363323,0.0008,82629.0,82628.0,0.1914894]
[1741938363761,0.0008,82629.0,82628.0,0.4335374]
[1741938363962,0.0008,82629.0,82628.0,0.43232742]
[1741938366121,0.0009691,82629.0,82628.0,0.43232742]
[1741938366524,0.0009691,82629.0,82628.0,0.38262742]
[1741938366722,0.0009691,82629.0,82628.0,0.30502742]
[1741938367990,0.0009691,82629.0,82628.0,0.25415]
[1741938368937,0.0009691,82629.0,82624.0,0.03611402]
[1741938368938,0.0009691,82629.0,82624.0,0.0003382]
[1741938369329,0.254156,82626.0,82624.0,0.0003382]
[1741938369585,0.25415,82628.0,82624.0,0.0003382]
[1741938369774,0.24205,82628.0,82625.0,0.242057]
[1741938370058,0.242057,82625.0,82624.0,0.0003382]
[1741938370647,0.254159,82625.0,82624.0,0.0003382]
[1741938370971,0.63055261,82625.0,82624.0,0.0003382]
[1741938371681,0.0009691,82629.0,82628.0,0.25415]
[1741938374788,0.3,82649.0,82646.0,0.241993]
[1741938374994,0.3,82647.0,82643.0,0.242003]
[1741938375333,0.241997,82646.0,82641.0,0.25411]
[1741938375616,0.541993,82647.0,82641.0,0.25411]
[1741938375617,0.3,82647.0,82646.0,0.254094]
[1741938375966,0.54327424,82653.0,82648.0,0.254086]
[1741938376168,0.54327424,82653.0,82649.0,0.241985]
[1741938376372,0.01339724,82653.0,82648.0,0.254086]
[1741938376778,0.3,82651.0,82649.0,0.241985]
[1741938377037,0.3,82651.0,82650.0,0.241984]
[1741938377184,0.3,82651.0,82649.0,0.241985]
[1741938377383,0.01339724,82653.0,82648.0,0.012099]
[1741938377664,0.241979,82652.0,82647.0,0.012099]
[1741938377885,0.012099,82651.0,82648.0,0.02787052]
[1741938378089,0.241978,82652.0,82646.0,0.00041118]
[1741938378090,0.554092,82647.0,82646.0,0.00041118]
[1741938378482,0.554092,82647.0,82624.0,0.0003382]
[1741938378483,0.012101,82633.0,82624.0,0.0003382]
[1741938378691,0.012102,82627.0,82624.0,0.00075014]
[1741938378910,0.254159,82625.0,82624.0,0.00075014]
[1741938380065,0.554159,82625.0,82624.0,0.00075014]
[1741938382254,0.00908507,82631.0,82625.0,0.242057]
[1741938382478,0.012102,82626.0,82624.0,0.00075014]
[1741938382616,0.242057,82625.0,82624.0,0.00075014]
[1741938382816,0.554159,82625.0,82624.0,0.00075014]
[1741938383119,0.67411989,82625.0,82624.0,0.00075014]
[1741938383326,0.554159,82625.0,82624.0,0.00075014]
[1741938385304,0.603359,82625.0,82624.0,0.00075014]
[1741938387372,0.679059,82625.0,82624.0,0.00075014]
[1741938387588,0.69359985,82625.0,82624.0,0.00075014]
[1741938387995,0.254246,82597.0,82588.0,0.242164]
[1741938388222,0.012107,82594.0,82588.0,0.242164]
[1741938388499,0.242145,82595.0,82592.0,0.242153]
[1741938388699,0.254247,82597.0,82593.0,0.242151]
[1741938388923,0.25425,82596.0,82590.0,0.012108]
[1741938389067,0.012107,82595.0,82589.0,0.25427]
[1741938389275,0.242148,82594.0,82590.0,0.242157]
[1741938389610,0.02439297,82594.0,82587.0,0.012108]
[1741938389834,0.012107,82592.0,82591.0,0.01429859]
[1741938390048,0.37243389,82592.0,82591.0,0.01429859]
[1741938390257,0.61458889,82592.0,82591.0,0.01429859]
[1741938390467,0.554262,82592.0,82591.0,0.01429859]
[1741938392158,0.56880285,82592.0,82591.0,0.01429859]
[1741938392370,0.012112,82559.0,82554.0,0.22382]
[1741938392571,0.012112,82559.0,82554.0,0.0805]
[1741938392828,0.24226,82556.0,82554.0,0.0805]
[1741938392961,0.3,82567.0,82563.0,0.242237]
[1741938393153,0.14328,82579.0,82564.0,0.012111]
[1741938393154,0.3,82569.0,82564.0,0.012111]
[1741938393352,0.242223,82569.0,82564.0,0.012111]
[1741938393595,0.3,82568.0,82567.0,0.254338]
[1741938393807,0.00041171,82569.0,82568.0,0.090811]
[1741938394568,0.00041171,82569.0,82568.0,0.09202198]
[1741938397150,0.00041171,82569.0,82568.0,0.090811]
[1741938398185,0.00041171,82569.0,82568.0,0.333035]
[1741938403409,0.012109,82583.0,82576.0,0.242198]
[1741938403743,0.012109,82581.0,82578.0,0.242194]
[1741938403966,0.254296,82581.0,82577.0,0.242198]
[1741938404151,0.2422,82577.0,82573.0,0.242208]
[1741938405188,0.254332,82569.0,82568.0,4.096e-05]
[1741938406003,0.6560619,82569.0,82568.0,4.096e-05]
[1741938407826,0.56887285,82569.0,82568.0,4.096e-05]
[1741938408051,0.65057285,82569.0,82568.0,4.096e-05]
[1741938408796,0.79349285,82569.0,82568.0,4.096e-05]
[1741938409532,0.8024641,82569.0,82568.0,4.096e-05]
[1741938410190,0.8475641,82569.0,82568.0,4.096e-05]
[1741938410395,0.97252499,82569.0,82568.0,9.6e-07]
[1741938410683,0.97281499,82569.0,82568.0,9.6e-07]
[1741938411432,0.8528541,82569.0,82568.0,9.6e-07]
[1741938411601,0.8478541,82569.0,82568.0,9.6e-07]
[1741938411778,0.7661541,82569.0,82568.0,9.6e-07]
[1741938411978,0.7662741,82569.0,82568.0,9.6e-07]
[1741938412405,0.6232341,82569.0,82568.0,9.6e-07]
[1741938412744,0.7662341,82569.0,82568.0,9.6e-07]
[1741938413140,0.88619499,82569.0,82568.0,9.6e-07]
[1741938413800,0.74319499,82569.0,82568.0,9.6e-07]
[1741938414002,0.88627499,82569.0,82568.0,9.6e-07]
[1741938415644,0.88627499,82569.0,82568.0,0.00033936]
[1741938415859,0.7663141,82569.0,82568.0,0.00033936]
[1741938416609,0.7660741,82569.0,82568.0,0.00033936]
[1741938417166,0.7660341,82569.0,82568.0,0.00033936]
[1741938417447,0.7209341,82569.0,82568.0,0.00033936]
[1741938419285,0.00029,82569.0,82568.0,0.25467436]
[1741938419409,0.00029,82569.0,82568.0,0.3143972]
[1741938420631,0.00029,82569.0,82568.0,0.25467436]
[1741938423303,0.3,82579.0,82573.0,0.242209]
[1741938423546,0.012109,82578.0,82573.0,0.01211]
[1741938423721,0.242199,82577.0,82574.0,0.242205]
[1741938423942,0.242201,82576.0,82573.0,0.254319]
[1741938424156,0.242195,82578.0,82573.0,0.254319]
[1741938424353,0.254316,82575.0,82568.0,0.00033936]
[1741938424575,0.254332,82569.0,82568.0,0.00033936]
[1741938425716,0.56887285,82569.0,82568.0,0.00033936]
[1741938427658,0.56904205,82569.0,82568.0,0.00033936]
[1741938428070,0.554375,82555.0,82554.0,0.0003384]
[1741938428233,0.71131585,82555.0,82554.0,0.0003384]
[1741938431000,0.559387,82551.0,82550.0,2.94229143]
[1741938431207,0.57392785,82551.0,82550.0,2.94229143]
[1741938431464,0.69388874,82551.0,82550.0,2.90586866]
[1741938431815,1.16118874,82551.0,82550.0,2.86944589]
[1741938432021,1.16118874,82551.0,82550.0,2.85034488]
[1741938432340,1.16118874,82551.0,82550.0,2.78300324]
[1741938432497,1.16118874,82551.0,82550.0,2.76080324]
[1741938432850,1.19190013,82551.0,82550.0,1.65989047]
[1741938433042,0.259415,82542.0,82541.0,0.0003382]
[1741938433251,0.95390829,82551.0,82512.0,0.0763]
[1741938433252,0.012117,82527.0,82512.0,0.0763]
[1741938433425,0.01454085,82526.0,82518.0,0.02080322]
[1741938433632,0.04198792,82525.0,82519.0,0.242368]
[1741938433949,0.01454085,82528.0,82519.0,0.242368]
[1741938434174,0.01454085,82528.0,82519.0,0.24226713]
[1741938434367,0.01454085,82528.0,82519.0,0.00041171]
[1741938435007,0.01454085,82528.0,82519.0,0.24277871]
[1741938435192,0.31454085,82526.0,82519.0,0.00041171]
[1741938435386,0.31454085,82526.0,82519.0,0.24277971]
[1741938435747,0.56902385,82520.0,82519.0,0.00041171]
[1741938435951,0.31454085,82520.0,82519.0,0.00041171]
[1741938436379,0.38478791,82520.0,82519.0,0.00041171]
[1741938438652,0.32665885,82520.0,82519.0,0.00041171]
[1741938439275,0.26902685,82519.0,82518.0,0.00709693]
[1741938441832,0.30058068,82520.0,82518.0,0.00709693]
[1741938442056,0.00058068,82520.0,82519.0,0.242368]
[1741938442419,0.00058068,82520.0,82518.0,0.00709693]
[1741938442818,0.00058068,82520.0,82519.0,0.242368]
[1741938443234,0.00058068,82520.0,82518.0,0.00709693]
[1741938443406,0.00058068,82520.0,82519.0,0.254486]
[1741938445641,0.00058068,82520.0,82518.0,0.00709693]
[1741938445870,0.02550149,82528.0,82518.0,0.24946793]
[1741938446079,0.24235,82527.0,82518.0,0.00714731]
[1741938446290,0.242348,82526.0,82518.0,0.00714731]
[1741938446544,0.24235,82527.0,82518.0,0.00714731]
[1741938446953,0.254459,82528.0,82518.0,0.00714731]
[1741938447159,0.242346,82527.0,82518.0,0.24951531]
[1741938447570,0.242342,82528.0,82520.0,0.242365]
[1741938447779,0.012114,82547.0,82534.0,0.012116]
[1741938447996,0.242306,82541.0,82535.0,0.0805]
[1741938448193,0.242307,82540.0,82535.0,0.0805]
[1741938448708,0.242295,82544.0,82536.0,0.242317]
[1741938448918,0.3,82543.0,82536.0,0.242317]
[1741938449368,0.3,82543.0,82535.0,0.322821]
[1741938449569,0.542278,82550.0,82539.0,0.012115]
[1741938449744,0.3,82545.0,82535.0,0.322818]
[1741938449955,0.0336341,82544.0,82535.0,0.0805]
[1741938450225,0.242344,82527.0,82526.0,0.078]
[1741938450453,0.012116,82529.0,82521.0,0.0472]
[1741938450674,0.242322,82535.0,82522.0,0.012117]
[1741938450901,0.242322,82535.0,82525.0,0.012117]
[1741938451120,0.3,82536.0,82533.0,0.242327]
[1741938451357,0.5965514,82536.0,82529.0,0.242339]
[1741938451584,0.5965514,82536.0,82528.0,0.24234]
[1741938451832,0.5965514,82536.0,82500.0,1.212116]
[1741938451833,0.242331,82532.0,82522.0,0.254476]
[1741938452038,0.012116,82534.0,82524.0,0.242352]
[1741938452247,0.012116,82534.0,82521.0,0.0472]
[1741938452248,0.012117,82527.0,82521.0,0.0472]
[1741938452468,0.012116,82529.0,82521.0,0.0472]
[1741938452669,0.254467,82525.0,82521.0,0.0472]
[1741938452884,0.242359,82522.0,82521.0,0.0472]
[1741938453144,0.242356,82524.0,82521.0,0.0472]
[1741938453349,0.254467,82526.0,82521.0,0.0472]
[1741938453509,0.012117,82524.0,82521.0,0.0472]
[1741938453725,0.242356,82523.0,82521.0,0.0472]
[1741938453969,0.254476,82524.0,82521.0,0.0472]
[1741938454155,0.242357,82523.0,82521.0,0.0472]
[1741938454308,0.242357,82523.0,82519.0,0.0783384]
[1741938454309,0.012117,82523.0,82519.0,0.0783384]
[1741938454694,0.242362,82521.0,82519.0,0.0783384]
[1741938454832,0.254476,82522.0,82519.0,0.0783384]
[1741938455035,0.242359,82522.0,82519.0,0.0783384]
[1741938455626,0.254483,82521.0,82519.0,0.0783384]
[1741938455825,0.254483,82520.0,82519.0,0.0003384]
[1741938456677,0.554483,82520.0,82519.0,0.0003384]
[1741938458993,0.3,82520.0,82519.0,0.0003384]
[1741938459266,0.542365,82520.0,82519.0,0.0003384]
[1741938459470,0.3,82520.0,82519.0,0.0003384]
[1741938459620,0.554483,82520.0,82519.0,0.0003384]
[1741938459995,0.3,82520.0,82519.0,0.0003384]
[1741938460561,0.542365,82520.0,82519.0,0.0003384]
[1741938461124,0.554483,82520.0,82519.0,0.0003384]
[1741938461607,0.3,82520.0,82519.0,0.0003384]
[1741938462989,0.542365,82520.0,82519.0,0.0003384]
[1741938464438,0.554483,82520.0,82519.0,0.0003384]
[1741938465147,0.3,82520.0,82519.0,0.0003384]
[1741938465517,0.3,82520.0,82519.0,0.2427064]
[1741938465716,0.3,82520.0,82519.0,0.0003384]
[1741938466149,0.3566597,82520.0,82519.0,0.0003384]
[1741938466462,0.6111427,82520.0,82519.0,0.0003384]
[1741938469160,0.3,82520.0,82519.0,0.0003384]
[1741938469311,0.542365,82520.0,82519.0,0.0003384]
[1741938469514,0.3,82520.0,82519.0,0.0003384]
[1741938469866,0.554483,82520.0,82519.0,0.0003384]
[1741938471217,0.554483,82520.0,82519.0,0.0002984]
[1741938471418,0.6620389,82520.0,82519.0,0.0002984]
[1741938471815,0.67657975,82520.0,82519.0,0.0002984]
[1741938473042,0.67657975,82520.0,82511.0,0.0008]
[1741938473043,0.630007,82512.0,82511.0,0.0002032]
[1741938473253,0.89188789,82512.0,82511.0,0.00061468]
[1741938473913,0.56905385,82510.0,82509.0,0.0003382]
[1741938476973,0.242459,82488.0,82487.0,0.070215]
[1741938477190,0.254581,82488.0,82487.0,0.070215]
[1741938477536,0.26722957,82488.0,82487.0,0.070215]
[1741938477736,0.254588,82486.0,82483.0,0.0472]
[1741938479116,0.25499926,82486.0,82483.0,0.0472]
[1741938480091,0.35813804,82486.0,82483.0,0.0472]
[1741938480269,0.25499926,82486.0,82483.0,0.0472]
[1741938481138,0.25499926,82486.0,82481.0,0.0814]
[1741938483404,0.25499926,82486.0,82476.0,0.0801]
[1741938483740,0.25499926,82486.0,82471.0,0.0011382]
[1741938483866,0.55499926,82486.0,82471.0,0.0011382]
[1741938484597,0.58815065,82486.0,82485.0,0.00013628]
[1741938485044,0.55499926,82486.0,82485.0,0.00013628]
[1741938485212,0.56954011,82486.0,82485.0,0.00013628]
[1741938485417,0.254637,82470.0,82469.0,0.07771288]
[1741938485778,0.254637,82470.0,82469.0,0.08343876]
[1741938487127,0.242512,82470.0,82469.0,0.08343876]
[1741938487956,0.254637,82470.0,82469.0,0.08343876]
[1741938488132,0.242512,82470.0,82469.0,0.08343876]
[1741938488813,0.254637,82470.0,82469.0,0.08343876]
[1741938489247,0.27817071,82470.0,82469.0,0.00572588]
[1741938489540,0.254637,82470.0,82469.0,0.00572588]
[1741938490772,0.242512,82470.0,82469.0,0.00572588]
[1741938490984,0.254637,82470.0,82469.0,0.00572588]
[1741938491868,0.012125,82471.0,82469.0,0.00572588]
[1741938492074,0.012125,82470.0,82469.0,0.00572588]
[1741938492277,0.254637,82470.0,82469.0,0.00572588]
[1741938496493,0.00041126,82486.0,82484.0,0.242469]
[1741938496705,0.242482,82482.0,82476.0,0.254616]
[1741938496832,0.242483,82480.0,82475.0,0.0482]
[1741938497033,0.254607,82481.0,82475.0,0.0482]
[1741938497237,0.242485,82479.0,82475.0,0.0482]
[1741938497432,0.254612,82480.0,82475.0,0.0482]
[1741938497677,0.012124,82481.0,82475.0,0.0482]
[1741938497678,0.254618,82476.0,82475.0,0.0482]
[1741938498093,0.242512,82470.0,82466.0,0.0481]
[1741938498318,0.254637,82470.0,82466.0,0.0481]
[1741938498717,0.254637,82470.0,82465.0,0.0777]
[1741938498921,0.254637,82470.0,82459.0,0.0763374]
[1741938499508,0.254637,82470.0,82469.0,0.00606448]
[1741938499997,0.2548063,82470.0,82469.0,0.00606448]
[1741938502339,0.0001693,82470.0,82469.0,0.24857948]
[1741938502724,0.0001693,82470.0,82469.0,0.25329948]
[1741938503084,0.0001693,82470.0,82469.0,0.01078448]
[1741938503430,0.0122943,82470.0,82469.0,0.01078448]
[1741938503594,0.2548063,82470.0,82469.0,0.01078448]
[1741938503950,0.0001693,82470.0,82469.0,0.01078448]
[1741938504103,0.2426813,82470.0,82469.0,0.01078448]
[1741938504627,0.2548063,82470.0,82469.0,0.01078448]
[1741938506184,0.35788843,82470.0,82469.0,0.01078448]
[1741938507060,0.2548063,82470.0,82469.0,0.01078448]
[1741938517612,0.5548063,82470.0,82469.0,0.01078448]
[1741938517811,0.56934715,82470.0,82469.0,0.01078448]
[1741938518160,0.56934715,82470.0,82469.0,0.0050586]
[1741938518362,0.56934715,82470.0,82468.0,0.0003374]
[1741938518363,0.34578085,82469.0,82468.0,8.8e-07]
[1741938518563,0.46574174,82469.0,82468.0,8.8e-07]
[1741938519517,0.47074174,82469.0,82468.0,8.8e-07]
[1741938521112,0.77074174,82469.0,82468.0,8.8e-07]
[1741938521315,0.56920885,82460.0,82459.0,0.0003374]
[1741938521483,0.70896885,82460.0,82459.0,0.0003374]
[1741938521685,0.79626623,82460.0,82459.0,0.0003374]
[1741938522824,0.79667723,82460.0,82459.0,0.0003374]
[1741938522999,0.554683,82455.0,82454.0,0.0003374]
[1741938524306,0.694603,82455.0,82454.0,0.0003374]
[1741938524828,0.76925443,82455.0,82454.0,0.0003374]
[1741938527466,0.67770563,82455.0,82454.0,0.0003374]
[1741938528042,0.68983263,82455.0,82454.0,0.0003374]
[1741938530132,0.254683,82455.0,82454.0,0.0003374]
[1741938530352,0.242556,82455.0,82454.0,0.0806374]
[1741938530551,0.254683,82455.0,82454.0,0.0806374]
[1741938532881,0.254683,82455.0,82454.0,0.0003374]
[1741938537546,0.2550216,82455.0,82454.0,0.0003374]
[1741938538926,0.2550216,82455.0,82454.0,0.1262374]
[1741938539157,0.0003386,82455.0,82454.0,0.3687964]
[1741938539363,0.0003386,82455.0,82454.0,0.3809234]
[1741938539547,0.0003386,82455.0,82454.0,0.1262374]
[1741938539690,0.0003386,82455.0,82454.0,0.3687964]
[1741938539898,0.0003386,82455.0,82454.0,0.1262374]
[1741938540120,0.0003386,82455.0,82454.0,0.3687964]
[1741938540317,0.0003386,82455.0,82454.0,0.3809234]
[1741938543742,0.0003386,82455.0,82454.0,0.3687964]
[1741938543936,0.0003386,82455.0,82454.0,0.1262374]
[1741938544143,0.0003386,82455.0,82454.0,0.3687964]
[1741938544297,0.0003386,82455.0,82454.0,0.3809234]
[1741938544655,0.0003386,82455.0,82454.0,0.3687964]
[1741938544859,0.2428946,82455.0,82454.0,0.1262374]
[1741938545404,0.2550216,82455.0,82454.0,0.1262374]
[1741938545732,0.0003386,82455.0,82454.0,0.1262374]
[1741938545939,0.0003386,82455.0,82454.0,0.3687964]
[1741938546117,0.0003386,82455.0,82454.0,0.3809234]
[1741938551500,0.0003386,82455.0,82454.0,0.5214434]
[1741938555227,0.2550216,82455.0,82454.0,0.1262374]
[1741938555436,0.2550216,82455.0,82454.0,0.0804374]
[1741938555636,0.5550216,82455.0,82454.0,0.0003374]
[1741938555997,0.3003386,82455.0,82454.0,0.1385644]
[1741938556209,0.3003386,82455.0,82454.0,0.3811234]
[1741938556402,0.3003386,82455.0,82454.0,0.1264374]
[1741938556828,0.3003386,82455.0,82454.0,0.3811234]
[1741938557991,0.0003386,82455.0,82454.0,0.3811234]
[1741938559821,0.0003386,82455.0,82454.0,0.1264374]
[1741938560214,0.2428946,82455.0,82454.0,0.1264374]
[1741938560420,0.0003386,82455.0,82454.0,0.3689964]
[1741938560697,0.0003386,82455.0,82454.0,0.3811234]
[1741938561075,0.0003386,82455.0,82454.0,0.1264374]
[1741938561597,0.0003386,82455.0,82454.0,0.3689964]
[1741938561745,0.0003386,82455.0,82454.0,0.1264374]
[1741938561939,0.0003386,82455.0,82454.0,0.3689964]
[1741938562346,0.0003386,82455.0,82454.0,0.1264374]
[1741938563947,0.2428946,82455.0,82454.0,0.1264374]
[1741938564250,0.0003386,82455.0,82454.0,0.3689964]
[1741938564461,0.0003386,82455.0,82454.0,0.3811234]
[1741938564667,0.0003386,82455.0,82454.0,0.1264374]
[1741938564808,0.2550216,82455.0,82454.0,0.0807374]
[1741938565010,0.2550216,82455.0,82454.0,0.0003374]
[1741938568381,0.5550216,82455.0,82454.0,0.0003374]
[1741938569606,0.254717,82444.0,82443.0,0.0766244]
[1741938569814,0.242609,82437.0,82436.0,0.0493384]
[1741938570243,0.012129,82441.0,82436.0,0.0493384]
[1741938570445,0.242609,82438.0,82436.0,0.0493384]
[1741938570650,0.242609,82437.0,82436.0,0.0493384]
[1741938570997,0.254739,82437.0,82436.0,0.0003384]
[1741938571576,0.254739,82437.0,82436.0,0.00023743]
[1741938572128,0.552299,82437.0,82436.0,0.00023743]
[1741938580424,0.31213,82437.0,82436.0,0.00023743]
[1741938580944,0.554739,82437.0,82436.0,0.00023743]
[1741938583141,0.554739,82437.0,82436.0,0.00023743]
[1741938584598,0.3,82439.0,82438.0,0.254736]
[1741938584903,0.3003388,82437.0,82436.0,0.00023743]
[1741938585859,0.0003388,82437.0,82436.0,0.00023743]
[1741938586412,0.0003388,82437.0,82436.0,0.25497943]
[1741938587601,0.0003388,82437.0,82436.0,0.30257943]
[1741938602053,0.2550778,82437.0,82436.0,0.00023743]
[1741938606767,0.5550778,82437.0,82436.0,0.00023743]
[1741938617457,0.57409643,82437.0,82436.0,0.00023743]
[1741938618422,0.71061266,82437.0,82436.0,0.00023743]
[1741938618631,0.83057355,82437.0,82436.0,0.00023743]
[1741938622561,0.83557355,82437.0,82436.0,0.00023743]
[1741938623051,1.25287355,82437.0,82436.0,0.00023743]
[1741938623508,1.24787355,82437.0,82436.0,0.00023743]
[1741938624972,1.2674144,82437.0,82436.0,0.00023743]
[1741938627654,0.254825,82409.0,82408.0,0.06557603]
[1741938628502,0.27384641,82409.0,82408.0,0.06557603]
[1741938628879,0.2742569,82409.0,82408.0,0.06557603]
[1741938630326,0.2865562,82409.0,82408.0,0.06557603]
[1741938632563,0.2865562,82409.0,82408.0,0.07717825]
[1741938635306,0.39044402,82409.0,82408.0,0.07717825]
[1741938635976,0.2865562,82409.0,82408.0,0.07717825]
[1741938638705,0.01100878,82409.0,82408.0,0.07717825]
[1741938639024,0.2617126,82409.0,82408.0,0.07717825]
[1741938639179,0.2738466,82409.0,82408.0,0.07717825]
[1741938639385,0.254825,82409.0,82408.0,0.07717825]
[1741938639606,0.25474913,82409.0,82408.0,0.07717825]
[1741938639787,0.01205813,82409.0,82408.0,0.07717825]
[1741938639987,0.242691,82411.0,82408.0,0.07717825]
[1741938640191,0.242688,82410.0,82408.0,0.0772384]
[1741938640387,0.242691,82409.0,82408.0,0.0772384]
[1741938640807,0.2551186,82410.0,82408.0,0.0772384]
[1741938641016,0.242691,82409.0,82408.0,0.0772384]
[1741938641395,0.242691,82409.0,82408.0,0.0790384]
[1741938641629,0.2551186,82410.0,82408.0,0.0790384]
[1741938641855,0.242691,82409.0,82408.0,0.0790384]
[1741938642039,0.26171248,82409.0,82408.0,0.0790384]
[1741938642391,0.01902148,82409.0,82408.0,0.0790384]
[1741938642795,0.26171248,82409.0,82408.0,0.0790384]
[1741938644039,0.26205088,82409.0,82408.0,0.0790384]
[1741938644675,0.27418488,82409.0,82408.0,0.0790384]
[1741938650760,0.01935988,82409.0,82408.0,0.0790384]
[1741938651083,0.01935988,82409.0,82408.0,0.3217324]
[1741938651286,0.0003384,82409.0,82408.0,0.3791664]
[1741938651491,0.0003384,82409.0,82408.0,0.5164464]
[1741938654245,0.0003384,82409.0,82408.0,0.3791664]
[1741938654450,0.0003384,82409.0,82408.0,0.5166464]
[1741938654927,0.0003384,82409.0,82408.0,0.54077906]
[1741938656199,0.242657,82421.0,82415.0,0.012133]
[1741938656392,0.242657,82421.0,82416.0,0.242671]
[1741938656393,0.242663,82419.0,82416.0,0.242671]
[1741938656593,0.242669,82417.0,82415.0,0.242671]
[1741938656793,0.242666,82418.0,82415.0,0.242671]
[1741938657435,0.254787,82422.0,82418.0,0.242662]
[1741938657638,0.25478,82424.0,82420.0,0.242656]
[1741938657984,0.27404859,82427.0,82421.0,0.076]
[1741938657985,0.254779,82425.0,82421.0,0.076]
[1741938658250,0.254779,82425.0,82422.0,0.242653]
[1741938658449,0.242647,82425.0,82422.0,0.242653]
[1741938658679,0.3,82426.0,82422.0,0.242653]
[1741938658885,0.254776,82425.0,82422.0,0.242653]
[1741938659005,0.242649,82424.0,82421.0,0.076]
[1741938659445,0.254775,82426.0,82422.0,0.242653]
[1741938659665,0.242644,82425.0,82421.0,0.318654]
[1741938660205,0.03140759,82427.0,82426.0,0.242641]
[1741938660353,0.03140759,82427.0,82426.0,0.254773]
[1741938660555,0.0190203,82427.0,82426.0,0.254773]
[1741938661142,0.254773,82426.0,82425.0,0.047]
[1741938661944,0.242644,82425.0,82422.0,0.242652]
[1741938662921,0.242644,82425.0,82422.0,0.242653]
[1741938663313,0.0190203,82427.0,82424.0,0.242645]
[1741938663519,0.0190203,82427.0,82425.0,0.242641]
[1741938664243,0.0190203,82427.0,82424.0,0.254774]
[1741938664441,0.0190203,82427.0,82426.0,0.242641]
[1741938664634,0.2616613,82427.0,82424.0,0.242647]
[1741938664978,0.2616613,82427.0,82425.0,0.242644]
[1741938665452,0.2616613,82427.0,82424.0,0.242647]
[1741938665702,0.2616593,82427.0,82425.0,0.242642]
[1741938666490,0.0190203,82427.0,82426.0,0.242641]
[1741938666887,0.0190203,82427.0,82425.0,0.242642]
[1741938667092,0.0190203,82427.0,82426.0,0.242641]
[1741938667292,0.0193587,82427.0,82426.0,0.254773]
[1741938667847,0.0003384,82427.0,82426.0,0.254773]
[1741938669947,0.24262,82434.0,82430.0,0.242628]
[1741938670148,0.01228393,82435.0,82431.0,0.0784]
[1741938670405,0.242617,82435.0,82431.0,0.090531]
[1741938670622,0.242617,82435.0,82431.0,0.0784]
[1741938670623,0.01213,82435.0,82431.0,0.0784]
[1741938670765,0.26163255,82435.0,82431.0,0.0784]
[1741938671103,0.26163255,82435.0,82431.0,0.321024]
[1741938671707,0.24262,82434.0,82431.0,0.0784]
[1741938671912,0.26163255,82435.0,82432.0,0.242623]
[1741938672112,0.27399625,82435.0,82432.0,0.242623]